bitfinex/quotes_SOLUSD_20250612
["timestamp","ask_amount","ask_price","bid_price","bid_amount"]
[1749752576154,6.31313131,158.4,158.39,45.28583731]
[1749752576678,41.21858449,158.43,158.39,45.28583731]
[1749752576882,41.21858449,158.43,158.39,26.16]
[1749752577253,19.12583731,158.42,158.39,26.16]
[1749752577984,19.12583731,158.41,158.39,26.16]
[1749752578156,19.12583731,158.4,158.35,19.12583731]
[1749752578356,19.12583731,158.39,158.36,26.16]
[1749752578954,6.31392852,158.38,158.37,26.16]
[1749752580295,22.0980072,158.39,158.37,26.16]
[1749752580780,41.22384451,158.39,158.37,26.16]
[1749752582071,41.22384451,158.39,158.35,19.12583731]
[1749752582284,41.22384451,158.39,158.36,26.16]
[1749752582891,26.0,158.42,158.36,26.16]
[1749752582892,19.12583731,158.4,158.36,26.16]
[1749752583800,9.2815306,158.39,158.36,45.28583731]
[1749752583969,4.64101306,158.38,158.36,26.16]
[1749752584167,6.31273278,158.41,158.36,28.017]
[1749752584382,9.28322864,158.4,158.36,116.517]
[1749752584567,11.6053296,158.39,158.36,116.517]
[1749752584895,4.64213816,158.38,158.36,116.517]
[1749752585204,6.31281417,158.41,158.37,19.12583731]
[1749752585406,6.31281417,158.41,158.4,19.12583731]
[1749752585691,6.31281417,158.41,158.4,45.28583731]
[1749752586192,6.31281417,158.41,158.4,26.16]
[1749752586779,6.3123343,158.42,158.4,26.16]
[1749752586984,6.3123343,158.42,158.4,45.28583731]
[1749752587295,4.64248242,158.41,158.4,26.16]
[1749752587496,6.3123343,158.42,158.4,26.16]
[1749752588592,25.43817161,158.42,158.4,26.16]
[1749752588796,19.12583731,158.41,158.4,26.16]
[1749752588999,41.21900736,158.42,158.4,26.16]
[1749752589210,22.09317005,158.42,158.4,26.16]
[1749752589397,6.3123343,158.42,158.4,26.16]
[1749752589792,25.43817161,158.42,158.4,26.16]
[1749752590099,6.3123343,158.42,158.4,26.16]
[1749752590282,25.43817161,158.42,158.4,26.16]
[1749752590481,41.21900736,158.42,158.37,19.12583731]
[1749752590709,26.0,158.44,158.33,0.63287133]
[1749752590710,6.31392852,158.38,158.33,0.63287133]
[1749752591009,6.31392852,158.38,158.35,19.12583731]
[1749752591372,6.31392852,158.38,158.36,26.16]
[1749752591590,4.64074436,158.37,158.36,26.16]
[1749752591798,22.09874983,158.38,158.36,26.16]
[1749752592394,22.09874983,158.38,158.35,19.12583731]
[1749752592595,22.09874983,158.38,158.36,26.16]
[1749752595275,22.09874983,158.38,158.37,26.16]
[1749752595474,23.75667338,158.38,158.37,26.16]
[1749752595703,19.12583731,158.38,158.37,26.16]
[1749752595885,19.12583731,158.39,158.37,26.16]
[1749752596214,19.12583731,158.39,158.33,0.63287133]
[1749752596412,19.12583731,158.38,158.34,45.28583731]
[1749752597220,19.12583731,158.37,158.35,26.16]
[1749752597508,6.31472594,158.36,158.35,26.16]
[1749752597879,6.31472594,158.36,158.33,108.25870864]
[1749752598101,6.31472594,158.36,158.34,26.16]
[1749752599276,6.31472594,158.36,158.34,19.12583731]
[1749752599500,6.3143272,158.37,158.35,26.16]
[1749752599878,6.3143272,158.37,158.36,19.12583731]
[1749752600072,6.31406527,158.38,158.36,19.12583731]
[1749752600275,6.31327402,158.4,158.37,19.12583731]
[1749752600577,6.31327402,158.4,158.39,19.12583731]
[1749752600777,6.3123343,158.42,158.39,19.12583731]
[1749752600972,6.3123343,158.42,158.4,19.12583731]
[1749752601173,6.3123343,158.42,158.41,26.16]
[1749752602298,25.43817161,158.42,158.41,26.16]
[1749752602805,10.94527813,158.42,158.41,26.16]
[1749752602988,6.3123343,158.42,158.41,26.16]
[1749752603377,25.43817161,158.42,158.41,26.16]
[1749752603577,79.73064497,158.42,158.36,88.5]
[1749752603803,19.12583731,158.39,158.37,26.16]
[1749752604100,19.12583731,158.4,158.37,26.16]
[1749752604305,4.6326682,158.39,158.37,26.16]
[1749752604498,4.63266652,158.39,158.37,26.16]
[1749752604704,53.65484155,158.42,158.37,26.16]
[1749752605002,11.5818802,158.41,158.37,26.16]
[1749752605204,2.31637604,158.41,158.37,45.28583731]
[1749752605404,21.44221335,158.41,158.37,45.28583731]
[1749752605587,26.7298233,158.4,158.37,26.16]
[1749752605788,26.7298233,158.4,158.36,19.12583731]
[1749752605789,4.63304554,158.39,158.38,26.16]
[1749752606084,41.2217969,158.4,158.38,26.16]
[1749752606280,4.63259445,158.39,158.38,26.16]
[1749752606488,4.63173257,158.39,158.38,26.16]
[1749752606693,22.09595959,158.4,158.38,26.16]
[1749752607092,22.09595959,158.4,158.36,19.12583731]
[1749752607293,41.2217969,158.4,158.37,26.16]
[1749752607844,6.31392852,158.38,158.37,26.16]
[1749752609102,41.22458714,158.38,158.33,90.85907133]
[1749752609407,19.12583731,158.37,158.33,19.75870864]
[1749752609595,19.12583731,158.37,158.33,0.63287133]
[1749752609796,19.12583731,158.37,158.34,26.16]
[1749752609998,19.12583731,158.35,158.33,0.63287133]
[1749752610198,19.12583731,158.35,158.34,26.16]
[1749752610679,23.75697237,158.35,158.34,26.16]
[1749752610892,23.75741823,158.35,158.34,26.16]
[1749752611405,23.75685082,158.35,158.34,26.16]
[1749752611709,23.75693715,158.35,158.34,26.16]
[1749752611907,25.44096203,158.35,158.34,26.16]
[1749752612109,25.44096203,158.35,158.33,0.63287133]
[1749752612314,19.12583731,158.34,158.33,0.63287133]
[1749752612613,23.75661766,158.34,158.33,26.79287133]
[1749752612785,23.75609832,158.34,158.33,26.79287133]
[1749752613119,23.75579793,158.34,158.33,0.63287133]
[1749752613410,4.62990283,158.34,158.33,26.79287133]
[1749752613611,19.12583731,158.34,158.33,26.79287133]
[1749752613907,30.07087307,158.34,158.33,0.63287133]
[1749752614098,30.07085797,158.34,158.33,0.63287133]
[1749752614299,30.07080623,158.34,158.33,26.79287133]
[1749752614812,25.44136086,158.34,158.33,26.79287133]
[1749752615515,30.06941243,158.34,158.33,26.79287133]
[1749752615715,25.44136086,158.34,158.33,26.79287133]
[1749752615891,27.75532242,158.34,158.33,26.79287133]
[1749752616216,32.38342157,158.34,158.33,26.79287133]
[1749752616403,32.38342157,158.34,158.33,0.63287133]
[1749752616595,30.06976248,158.34,158.33,26.79287133]
[1749752616800,32.38209557,158.34,158.33,26.79287133]
[1749752617001,32.38209626,158.34,158.33,26.79287133]
[1749752617204,30.06878978,158.34,158.33,0.63287133]
[1749752617403,32.38235148,158.34,158.33,26.79287133]
[1749752617606,25.44136086,158.34,158.33,26.79287133]
[1749752618016,27.75494928,158.34,158.33,26.79287133]
[1749752618209,32.38211015,158.34,158.33,26.79287133]
[1749752618407,32.38226821,158.34,158.33,26.79287133]
[1749752618609,32.38215309,158.34,158.33,26.79287133]
[1749752618933,30.06851533,158.34,158.33,26.79287133]
[1749752619222,30.0684967,158.34,158.33,26.79287133]
[1749752619397,25.44136086,158.34,158.33,26.79287133]
[1749752619600,32.3914868,158.34,158.33,26.79287133]
[1749752619817,32.3914878,158.34,158.33,26.79287133]
[1749752620015,32.39149251,158.34,158.33,26.79287133]
[1749752620200,32.39149671,158.34,158.33,26.79287133]
[1749752620519,32.39130655,158.34,158.33,26.79287133]
[1749752620717,27.75800942,158.34,158.33,26.79287133]
[1749752620911,27.75799784,158.34,158.33,26.79287133]
[1749752621116,32.39127181,158.34,158.33,26.79287133]
[1749752621325,25.44136086,158.34,158.33,26.79287133]
[1749752621502,32.39031096,158.34,158.33,26.79287133]
[1749752621700,32.39004171,158.34,158.33,26.79287133]
[1749752622014,27.75758803,158.34,158.33,26.79287133]
[1749752622221,27.75757474,158.34,158.33,26.79287133]
[1749752622524,13.2641652,158.34,158.33,26.79287133]
[1749752622725,10.94795132,158.34,158.33,26.79287133]
[1749752622908,6.31552355,158.34,158.33,26.79287133]
[1749752623529,10.94841795,158.34,158.33,26.79287133]
[1749752623700,6.31552355,158.34,158.33,26.79287133]
[1749752623901,10.9484914,158.34,158.33,26.79287133]
[1749752624113,22.10154079,158.36,158.33,45.91870864]
[1749752625232,22.10154079,158.36,158.33,26.79287133]
[1749752626031,41.2273781,158.36,158.33,26.79287133]
[1749752627731,34.91265216,158.36,158.33,26.79287133]
[1749752628519,34.91265216,158.36,158.34,26.16]
[1749752628927,19.12583731,158.35,158.34,26.16]
[1749752629313,19.12583731,158.35,158.33,0.63287133]
[1749752629510,19.12583731,158.34,158.33,0.63287133]
[1749752629727,19.12583731,158.34,158.33,26.79287133]
[1749752629935,25.44136086,158.34,158.33,26.79287133]
[1749752630626,6.31552355,158.34,158.33,26.79287133]
[1749752630928,25.44136086,158.34,158.33,26.79287133]
[1749752632224,25.44136086,158.34,158.33,0.63287133]
[1749752632437,10.93026588,158.34,158.33,26.79287133]
[1749752632730,25.44136086,158.34,158.33,26.79287133]
[1749752632904,30.05611635,158.34,158.33,26.79287133]
[1749752633107,30.05606746,158.34,158.33,26.79287133]
[1749752633311,30.05606746,158.34,158.33,0.63287133]
[1749752633312,25.44136086,158.34,158.33,0.63287133]
[1749752633531,30.05561215,158.34,158.33,0.63287133]
[1749752633836,32.36385982,158.34,158.33,26.79287133]
[1749752634049,32.36365936,158.34,158.33,26.79287133]
[1749752634330,25.44136086,158.34,158.33,26.79287133]
[1749752634551,32.36380625,158.34,158.33,0.63287133]
[1749752634738,32.36380625,158.34,158.24,0.8567127]
[1749752634739,26.0,158.31,158.24,0.8567127]
[1749752634927,19.12583731,158.27,158.25,26.16]
[1749752635310,19.12583731,158.28,158.25,26.16]
[1749752635511,19.12583731,158.29,158.25,26.16]
[1749752635743,26.0,158.31,158.25,26.16]
[1749752636034,6.31711939,158.3,158.26,19.12583731]
[1749752636238,6.31711939,158.3,158.25,26.16]
[1749752636536,6.31711939,158.3,158.27,19.12583731]
[1749752636734,6.31711939,158.3,158.25,26.16]
[1749752636939,6.31711939,158.3,158.26,19.12583731]
[1749752637137,0.42648471,158.36,158.29,19.12583731]
[1749752637138,45.12583731,158.33,158.29,19.12583731]
[1749752637441,45.12583731,158.33,158.3,26.16]
[1749752637734,45.12583731,158.33,158.31,26.16]
[1749752638041,6.31632137,158.32,158.31,26.16]
[1749752638427,6.31552355,158.34,158.31,26.16]
[1749752638738,6.31552355,158.34,158.31,45.28583731]
[1749752638934,6.31552355,158.34,158.32,19.12583731]
[1749752640239,6.31512472,158.35,158.32,19.12583731]
[1749752641935,6.31512472,158.35,158.33,19.12583731]
[1749752642318,6.31512472,158.35,158.32,19.12583731]
[1749752643140,6.31512472,158.35,158.31,45.28583731]
[1749752643448,6.31512472,158.35,158.32,26.16]
[1749752643742,19.12583731,158.33,158.27,19.12583731]
[1749752643930,6.31672035,158.31,158.28,26.16]
[1749752644248,25.44255766,158.31,158.27,19.12583731]
[1749752644422,41.23435855,158.31,158.28,26.16]
[1749752644842,22.10852124,158.31,158.29,26.16]
[1749752645934,41.23435855,158.31,158.3,26.16]
[1749752646631,22.10852124,158.31,158.3,26.16]
[1749752646833,6.31672035,158.31,158.3,26.16]
[1749752647515,6.31672035,158.31,158.3,45.28583731]
[1749752647720,6.31592244,158.33,158.3,45.28583731]
[1749752647943,22.10504277,158.34,158.3,45.28583731]
[1749752648444,19.12583731,158.32,158.28,19.12583731]
[1749752648635,19.12583731,158.32,158.31,26.16]
[1749752649429,19.12583731,158.32,158.26,19.12583731]
[1749752649630,19.12583731,158.3,158.27,26.16]
[1749752649854,6.31751847,158.29,158.28,26.16]
[1749752650438,6.31751847,158.29,158.25,19.12583731]
[1749752650657,19.12583731,158.28,158.24,8.4325127]
[1749752650837,19.12583731,158.26,158.24,0.8567127]
[1749752651036,19.12583731,158.25,158.24,0.8567127]
[1749752651265,19.12583731,158.25,158.24,27.0167127]
[1749752651441,19.12583731,158.25,158.24,0.8567127]
[1749752651643,19.12583731,158.25,158.24,27.0167127]
[1749752651841,22.11131466,158.29,158.24,27.0167127]
[1749752652039,19.12583731,158.26,158.24,27.0167127]
[1749752652762,19.12583731,158.26,158.25,26.16]
[1749752654056,6.31911532,158.25,158.24,0.8567127]
[1749752654243,25.44495263,158.25,158.24,27.0167127]
[1749752654443,25.44495263,158.25,158.24,0.8567127]
[1749752654444,6.31911532,158.25,158.24,0.8567127]
[1749752654645,6.31911532,158.25,158.24,27.0167127]
[1749752656666,25.44495263,158.25,158.24,0.8567127]
[1749752656971,70.5718734,158.25,158.24,0.8567127]
[1749752657265,70.57110204,158.25,158.24,0.8567127]
[1749752657441,70.56935569,158.25,158.24,0.8567127]
[1749752657643,70.56960813,158.25,158.24,0.8567127]
[1749752657959,68.26197895,158.25,158.24,0.8567127]
[1749752658155,68.26160822,158.25,158.24,0.8567127]
[1749752658359,70.56901324,158.25,158.24,0.8567127]
[1749752658654,70.56912328,158.25,158.24,0.8567127]
[1749752658854,68.26168111,158.25,158.24,0.8567127]
[1749752659053,65.95430207,158.25,158.24,0.8567127]
[1749752659258,65.95397997,158.25,158.24,0.8567127]
[1749752659460,70.5680827,158.25,158.24,0.8567127]
[1749752659665,68.26102166,158.25,158.24,0.8567127]
[1749752659961,70.56810369,158.25,158.24,0.8567127]
[1749752660170,32.31656635,158.25,158.24,0.8567127]
[1749752660468,70.56827356,158.25,158.24,0.8567127]
[1749752660667,65.95404019,158.25,158.24,0.8567127]
[1749752661171,51.44211938,158.25,158.24,0.8567127]
[1749752661380,68.26094563,158.25,158.24,0.8567127]
[1749752661541,63.64692351,158.25,158.24,0.8567127]
[1749752663058,45.07613357,158.23,158.22,2.55667443]
[1749752663374,68.8178838,158.23,158.22,2.55667443]
[1749752663541,66.50986395,158.23,158.22,2.55667443]
[1749752663740,71.12612915,158.23,158.22,2.55667443]
[1749752663939,66.51020287,158.23,158.22,2.55667443]
[1749752664178,68.81867768,158.23,158.22,2.55667443]
[1749752664386,71.12639249,158.23,158.22,2.55667443]
[1749752664556,68.81824978,158.23,158.22,2.55667443]
[1749752664755,77.44625483,158.23,158.22,2.55667443]
[1749752664978,75.13810182,158.23,158.22,2.55667443]
[1749752665182,70.52188492,158.23,158.22,2.55667443]
[1749752665862,51.44575135,158.23,158.22,2.55667443]
[1749752666173,32.31991404,158.23,158.22,2.55667443]
[1749752666370,51.44575135,158.23,158.22,2.55667443]
[1749752667173,51.44575135,158.23,158.15,8.33333333]
[1749752667174,0.42648471,158.21,158.15,8.33333333]
[1749752667354,0.42648471,158.21,158.17,26.18]
[1749752667561,19.12583731,158.18,158.17,26.18]
[1749752667771,18.64964886,158.22,158.17,26.18]
[1749752668075,19.12583731,158.18,158.15,8.33333333]
[1749752668278,26.0,158.2,158.15,8.33333333]
[1749752668481,19.12583731,158.16,158.15,34.51333333]
[1749752668663,25.44854848,158.16,158.15,34.51333333]
[1749752668869,25.44854848,158.16,158.15,8.33333333]
[1749752669171,6.32271117,158.16,158.15,34.51333333]
[1749752669481,25.44854848,158.16,158.15,34.51333333]
[1749752670082,44.57438579,158.16,158.15,8.33333333]
[1749752670591,63.65051936,158.16,158.15,8.33333333]
[1749752670761,6.32431065,158.12,158.1,26.33]
[1749752670956,19.12583731,158.11,158.1,0.15]
[1749752671170,19.12583731,158.11,158.1,26.35]
[1749752671582,19.12583731,158.11,158.1,0.15]
[1749752672090,38.20197088,158.11,158.1,0.15]
[1749752672472,19.12583731,158.11,158.1,0.15]
[1749752672779,25.45054795,158.11,158.1,0.15]
[1749752674166,44.52668152,158.11,158.1,0.15]
[1749752677914,51.40084421,158.11,158.1,0.15]
[1749752678695,70.52668152,158.11,158.1,0.15]
[1749752678999,70.52668152,158.11,157.92,0.8567127]
[1749752679000,26.0,157.99,157.92,0.8567127]
[1749752679207,19.07613357,157.99,157.92,0.8567127]
[1749752679510,19.12583731,158.0,157.97,19.12583731]
[1749752679511,19.07613357,158.0,157.97,19.12583731]
[1749752679696,19.07613357,158.0,157.92,19.98255001]
[1749752679697,5.74,157.99,157.96,21.73264261]
[1749752679893,5.74,157.99,157.96,2.6068053]
[1749752679894,24.86583731,157.99,157.96,2.6068053]
[1749752680300,5.74,157.99,157.96,2.6068053]
[1749752680691,18.64964886,157.99,157.96,2.6068053]
[1749752681107,32.33031588,157.97,157.96,2.6068053]
[1749752681603,6.33031588,157.97,157.96,21.73264261]
[1749752681810,32.33031588,157.97,157.96,21.73264261]
[1749752682181,34.89769438,158.02,157.96,2.6068053]
[1749752682388,26.0,157.99,157.96,29.1468053]
[1749752682584,26.0,157.99,157.98,19.12583731]
[1749752682800,6.32871337,158.01,157.98,19.12583731]
[1749752683012,6.32871337,158.01,158.0,19.12583731]
[1749752683189,15.81941082,158.04,158.0,19.12583731]
[1749752683390,15.81941082,158.04,158.02,19.12583731]
[1749752684110,26.0,158.03,158.02,19.12583731]
[1749752684289,15.81941082,158.04,158.02,19.12583731]
[1749752684491,15.81941082,158.04,157.96,29.1468053]
[1749752684492,15.81941082,158.04,158.03,19.12583731]
[1749752684693,44.64964886,158.03,157.99,19.12583731]
[1749752685382,22.14909504,158.02,157.96,29.1468053]
[1749752685585,22.14909504,158.02,157.99,19.12583731]
[1749752686305,22.14909504,158.02,157.98,19.12583731]
[1749752686306,41.27493235,158.02,157.98,19.12583731]
[1749752686710,22.14909504,158.02,157.99,19.12583731]
[1749752686913,22.14909504,158.02,158.0,19.12583731]
[1749752687902,22.14909504,158.02,158.01,19.12583731]
[1749752688417,6.32831287,158.02,157.96,29.1468053]
[1749752688613,6.32831287,158.02,158.01,19.12583731]
[1749752688813,6.32831287,158.02,158.01,45.66583731]
[1749752689605,22.14629207,158.04,158.01,45.66583731]
[1749752689816,22.14629207,158.04,158.02,19.12583731]
[1749752691016,22.14629207,158.04,158.03,19.12583731]
[1749752691513,6.32751202,158.04,158.03,19.12583731]
[1749752692688,6.32711167,158.05,158.03,19.12583731]
[1749752692891,6.32711167,158.05,158.04,19.12583731]
[1749752693307,6.32711167,158.05,158.04,28.81768235]
[1749752696118,31.70218076,158.06,158.04,28.81768235]
[1749752696310,6.3267626,158.06,158.05,55.29768235]
[1749752697335,15.81487225,158.08,158.05,26.48]
[1749752697634,44.6325546,158.08,158.05,26.48]
[1749752697956,28.81768235,158.06,158.05,26.48]
[1749752699227,35.14439372,158.06,158.05,26.48]
[1749752699823,6.32671137,158.06,158.05,26.48]
[1749752701102,6.32671137,158.06,158.05,55.29768235]
[1749752701335,15.81487225,158.08,158.05,55.29768235]
[1749752701534,15.81487225,158.08,158.06,28.81768235]
[1749752702431,15.81487225,158.08,158.05,26.48]
[1749752702846,28.81768235,158.06,158.02,28.81768235]
[1749752703146,15.81487225,158.08,158.03,26.48]
[1749752703147,28.81768235,158.05,158.03,26.48]
[1749752703335,6.32751202,158.04,158.03,26.48]
[1749752703508,6.32751202,158.04,158.01,28.81768235]
[1749752703708,6.32751202,158.04,158.02,26.5]
[1749752703929,35.14519437,158.04,158.02,26.5]
[1749752704119,50.96397442,158.04,158.03,26.52]
[1749752704651,22.14629207,158.04,158.03,26.52]
[1749752705482,28.81768235,158.05,158.03,26.52]
[1749752705834,28.81768235,158.04,157.99,28.81768235]
[1749752706036,28.81768235,158.04,158.0,26.52]
[1749752706246,28.81768235,158.03,157.99,28.81768235]
[1749752706537,28.81768235,158.03,158.0,26.5]
[1749752706738,28.81768235,158.01,157.96,2.6068053]
[1749752706940,28.81768235,157.99,157.96,2.6068053]
[1749752707241,26.0,158.01,157.96,2.6068053]
[1749752707537,22.15189873,158.0,157.96,2.6068053]
[1749752707738,28.81768235,157.97,157.96,2.6068053]
[1749752708136,28.81768235,157.97,157.96,29.1468053]
[1749752708324,28.81768235,157.97,157.96,2.6068053]
[1749752708537,22.15189873,158.0,157.96,2.6068053]
[1749752708722,28.81768235,157.97,157.96,29.1468053]
[1749752708916,28.81768235,157.99,157.96,29.1468053]
[1749752709118,28.81768235,157.98,157.96,29.1468053]
[1749752709426,6.33031588,157.97,157.96,29.1468053]
[1749752710147,15.82070685,158.03,157.96,57.96448765]
[1749752710331,28.81768235,157.99,157.96,29.1468053]
[1749752710645,28.81768235,157.97,157.96,2.6068053]
[1749752711547,35.14799823,157.97,157.96,2.6068053]
[1749752712132,6.33031588,157.97,157.96,2.6068053]
[1749752712338,35.14799823,157.97,157.96,2.6068053]
[1749752712528,54.08197023,157.97,157.96,2.6068053]
[1749752712728,83.04181415,157.97,157.96,2.6068053]
[1749752712934,18.933972,157.93,157.92,0.8567127]
[1749752713129,53.71165435,157.93,157.92,0.8567127]
[1749752713329,60.04357355,157.93,157.92,0.8567127]
[1749752713743,60.18573512,157.93,157.92,0.8567127]
[1749752713928,67.57123512,157.93,157.92,0.8567127]
[1749752714122,67.57123512,157.93,157.81,7.0167]
[1749752714123,18.933972,157.89,157.81,7.0167]
[1749752714328,26.0,157.9,157.82,26.54]
[1749752714851,26.0,157.9,157.83,26.54]
[1749752714852,28.81768235,157.84,157.83,26.54]
[1749752715041,28.81768235,157.85,157.81,26.54]
[1749752715231,18.933972,157.89,157.81,26.54]
[1749752715435,26.0,157.9,157.82,28.81768235]
[1749752715436,28.81768235,157.86,157.82,28.81768235]
[1749752715756,6.33392449,157.88,157.84,28.81768235]
[1749752715940,6.33272117,157.91,157.87,28.81768235]
[1749752716252,5.98,157.92,157.88,26.56]
[1749752716436,12.31236478,157.92,157.89,55.37768235]
[1749752716835,12.31236478,157.92,157.89,26.56]
[1749752717146,5.98,157.92,157.9,28.81768235]
[1749752718152,5.98,157.92,157.89,26.56]
[1749752718442,12.31234374,157.92,157.89,26.56]
[1749752718647,41.13002609,157.92,157.89,26.56]
[1749752718822,12.31234374,157.92,157.89,26.56]
[1749752719448,5.98,157.92,157.9,28.81768235]
[1749752719963,5.98,157.92,157.89,26.56]
[1749752720327,34.79768235,157.92,157.89,26.56]
[1749752721257,28.81768235,157.91,157.9,26.6]
[1749752721550,35.15040352,157.91,157.9,26.6]
[1749752721963,50.98220644,157.91,157.81,8.733]
[1749752722256,28.81768235,157.89,157.84,28.81768235]
[1749752722441,22.16452409,157.91,157.86,28.81768235]
[1749752722643,6.33272117,157.91,157.88,28.81768235]
[1749752722845,6.33272117,157.91,157.85,26.6]
[1749752723040,6.33272117,157.91,157.88,28.81768235]
[1749752724356,12.31245461,157.92,157.89,26.6]
[1749752724541,6.33151829,157.94,157.91,28.81768235]
[1749752724856,6.33151829,157.94,157.92,28.81768235]
[1749752725161,6.33151829,157.94,157.93,26.66]
[1749752725337,6.33151829,157.94,157.93,55.47768235]
[1749752725661,6.33071663,157.96,157.93,26.66]
[1749752725869,50.97519057,157.96,157.93,26.66]
[1749752726745,28.81768235,157.94,157.93,26.66]
[1749752726944,28.81768235,157.94,157.85,1.7267]
[1749752727245,28.81768235,157.93,157.88,28.81768235]
[1749752727457,53.8110914,157.96,157.88,28.81768235]
[1749752727761,6.33232016,157.92,157.88,28.81768235]
[1749752727945,6.33232016,157.92,157.86,34.0847]
[1749752727946,6.33232016,157.92,157.89,28.81768235]
[1749752728258,6.33232016,157.92,157.9,26.66]
[1749752728757,50.98080291,157.92,157.86,7.4247]
[1749752728962,50.98080291,157.92,157.87,55.47768235]
[1749752729167,28.81768235,157.91,157.87,26.66]
[1749752729868,22.16592779,157.9,157.79,18.64964886]
[1749752730047,22.16592779,157.9,157.8,35.3104]
[1749752730546,22.16592779,157.9,157.86,28.81768235]
[1749752731046,22.16592779,157.9,157.87,26.68]
[1749752731663,22.16592779,157.9,157.85,28.81768235]
[1749752731863,22.16592779,157.9,157.88,26.68]
[1749752732164,53.81790552,157.94,157.88,26.68]
[1749752732741,28.81768235,157.91,157.88,26.68]
[1749752732941,28.81768235,157.89,157.8,8.6704]
[1749752733260,53.81790552,157.94,157.8,8.6704]
[1749752733261,28.81768235,157.88,157.84,28.81768235]
[1749752733434,18.933972,157.93,157.85,26.84]
[1749752733641,28.81768235,157.89,157.8,8.6704]
[1749752733841,28.81768235,157.9,157.85,28.81768235]
[1749752734052,22.16733167,157.89,157.86,26.84]
[1749752734365,22.16733167,157.89,157.86,55.65768235]
[1749752734562,22.16733167,157.89,157.8,8.6704]
[1749752734763,22.16733167,157.89,157.86,28.81768235]
[1749752734965,22.16733167,157.89,157.87,26.84]
[1749752735261,22.16733167,157.89,157.85,28.81768235]
[1749752735486,50.98501402,157.89,157.85,28.81768235]
[1749752735673,50.98501402,157.89,157.86,26.92]
[1749752736049,28.81768235,157.89,157.84,28.81768235]
[1749752736250,28.81768235,157.89,157.86,26.92]
[1749752736962,28.81768235,157.89,157.84,28.81768235]
[1749752737142,28.81768235,157.89,157.85,26.9]
[1749752738072,6.33392449,157.88,157.86,26.9]
[1749752738466,22.16873573,157.88,157.86,26.9]
[1749752739951,22.16873573,157.88,157.84,28.81768235]
[1749752740166,22.16873573,157.88,157.85,26.9]
[1749752740849,22.16873573,157.88,157.8,8.6704]
[1749752741049,50.98641808,157.88,157.83,28.81768235]
[1749752741245,82.65604057,157.88,157.84,26.88]
[1749752741666,82.65604057,157.88,157.85,26.86]
[1749752741858,28.81768235,157.87,157.85,26.86]
[1749752742180,6.33472697,157.86,157.85,26.86]
[1749752742767,22.1715444,157.86,157.85,26.86]
[1749752743266,22.1715444,157.86,157.84,26.86]
[1749752743774,22.1715444,157.86,157.84,55.67768235]
[1749752744148,22.16873573,157.88,157.84,55.67768235]
[1749752744760,50.98641808,157.88,157.84,26.86]
[1749752745757,50.98641808,157.88,157.84,55.67768235]
[1749752745758,22.16873573,157.88,157.84,55.67768235]
[1749752746348,28.81768235,157.87,157.84,26.86]
[1749752746873,50.98641808,157.88,157.84,26.86]
[1749752747278,41.43043779,157.88,157.84,26.86]
[1749752747665,22.16873573,157.88,157.85,19.26170206]
[1749752749090,6.33392449,157.88,157.85,19.26170206]
[1749752749272,6.33392449,157.88,157.84,46.12170206]
[1749752749470,22.16873573,157.88,157.84,46.12170206]
[1749752749982,22.16873573,157.88,157.85,19.26170206]
[1749752751073,6.33392449,157.88,157.85,19.26170206]
[1749752751258,6.33392449,157.88,157.86,19.26170206]
[1749752751468,6.33392449,157.88,157.87,26.82]
[1749752751783,41.23447409,157.91,157.87,26.82]
[1749752751784,22.16592779,157.9,157.87,26.82]
[1749752752665,22.16592779,157.9,157.87,46.08170206]
[1749752752874,22.16592779,157.9,157.87,26.82]
[1749752753070,22.16592779,157.9,157.87,46.08170206]
[1749752753762,6.33312222,157.9,157.87,46.08170206]
[1749752753958,6.33312222,157.9,157.88,19.26170206]
[1749752757191,6.33312222,157.9,157.89,19.26170206]
[1749752758081,22.16171721,157.93,157.87,34.2616]
[1749752758288,22.16171721,157.93,157.89,19.26170206]
[1749752758476,22.16171721,157.93,157.9,26.76]
[1749752759186,22.16171721,157.93,157.91,19.26170206]
[1749752760269,15.82979801,157.93,157.91,19.26170206]
[1749752760694,15.82979801,157.93,157.9,26.76]
[1749752760695,15.82979801,157.93,157.9,46.02170206]
[1749752761504,19.26170206,157.92,157.87,26.70330206]
[1749752761794,19.26170206,157.92,157.88,26.72]
[1749752762020,19.26170206,157.91,157.86,19.26170206]
[1749752762293,37.98910978,157.94,157.83,7.3674]
[1749752762294,22.16873573,157.88,157.87,26.78]
[1749752762591,22.16873573,157.88,157.84,19.26170206]